bitfinex/quotes_BTCUSD_20230904
["timestamp","ask_amount","ask_price","bid_price","bid_amount"]
[1693828787442,0.042893,25889.0,25888.0,99.91153177]
[1693828788283,0.042893,25889.0,25888.0,99.91151408]
[1693828792246,0.042893,25889.0,25888.0,99.65585108]
[1693828792247,0.53747978,25889.0,25888.0,99.65585108]
[1693828792438,0.53747978,25889.0,25888.0,99.64414459]
[1693828797862,0.50847978,25889.0,25888.0,99.64414459]
[1693828798086,0.52047978,25889.0,25888.0,99.64414459]
[1693828798307,0.53747978,25889.0,25888.0,99.64414459]
[1693828798509,0.52047978,25889.0,25888.0,99.64414459]
[1693828799125,0.50847978,25889.0,25888.0,99.64414459]
[1693828799737,0.53247978,25889.0,25888.0,99.64414459]
[1693828800560,0.68943978,25889.0,25888.0,99.64414459]
[1693828800770,0.69033978,25889.0,25888.0,99.61380951]
[1693828800976,0.69081978,25889.0,25888.0,99.61380951]
[1693828801181,0.69201978,25889.0,25888.0,99.4515884]
[1693828801388,0.78413978,25889.0,25888.0,99.4515884]
[1693828801592,1.16363978,25889.0,25888.0,99.4515884]
[1693828801797,1.16405978,25889.0,25888.0,99.4515884]
[1693828801976,1.18781978,25889.0,25888.0,99.4515884]
[1693828802219,1.18883978,25889.0,25888.0,98.39322408]
[1693828802403,1.32009978,25889.0,25888.0,98.39322408]
[1693828802646,1.32399978,25889.0,25888.0,98.39322408]
[1693828802878,1.32207978,25889.0,25888.0,98.39322408]
[1693828803109,1.31853978,25889.0,25888.0,98.39322408]
[1693828803322,1.29459978,25889.0,25888.0,98.39322408]
[1693828803532,1.33095978,25889.0,25888.0,98.39322408]
[1693828803740,1.28979978,25889.0,25888.0,98.39322408]
[1693828803925,1.26357978,25889.0,25888.0,98.39322408]
[1693828804133,1.33077978,25889.0,25888.0,98.39322408]
[1693828804335,1.31961978,25889.0,25888.0,98.39322408]
[1693828804572,1.32201978,25889.0,25888.0,98.00698335]
[1693828804779,1.32741978,25889.0,25888.0,98.00698335]
[1693828804967,1.32579978,25889.0,25888.0,98.00698335]
[1693828805169,1.29921978,25889.0,25888.0,98.00698335]
[1693828805380,1.31655978,25889.0,25888.0,98.00698335]
[1693828805551,1.31589978,25889.0,25888.0,98.00698335]
[1693828805761,1.29105978,25889.0,25888.0,98.00698335]
[1693828805962,1.28049978,25889.0,25888.0,98.00698335]
[1693828806170,1.30449978,25889.0,25888.0,98.00698335]
[1693828806339,1.30485978,25889.0,25888.0,98.00698335]
[1693828806544,1.30857978,25889.0,25888.0,98.00698335]
[1693828806728,1.28739978,25889.0,25888.0,97.62074262]
[1693828806928,1.29039978,25889.0,25888.0,97.62074262]
[1693828807158,1.33833978,25889.0,25888.0,97.62074262]
[1693828807364,1.33587978,25889.0,25888.0,97.62074262]
[1693828807582,1.33347978,25889.0,25888.0,97.62074262]
[1693828807821,1.33575978,25889.0,25888.0,97.62074262]
[1693828808026,1.33557978,25889.0,25888.0,97.62074262]
[1693828808308,1.33701978,25889.0,25888.0,97.62074262]
[1693828808515,1.49997978,25889.0,25888.0,97.62074262]
[1693828808725,1.47237978,25889.0,25888.0,97.62074262]
[1693828808933,1.46877978,25889.0,25888.0,97.62074262]
[1693828809137,1.45977978,25889.0,25888.0,97.23450189]
[1693828809341,1.43313978,25889.0,25888.0,97.23450189]
[1693828809580,1.29021978,25889.0,25888.0,97.23450189]
[1693828809808,1.31283978,25889.0,25888.0,97.23450189]
[1693828810044,1.33407978,25889.0,25888.0,97.23450189]
[1693828810220,1.33617978,25889.0,25888.0,97.23450189]
[1693828810449,1.31217978,25889.0,25888.0,97.23450189]
[1693828810655,1.31043978,25889.0,25888.0,97.23450189]
[1693828810811,1.33479978,25889.0,25888.0,97.23450189]
[1693828811013,1.33347978,25889.0,25888.0,97.23450189]
[1693828811217,1.31991978,25889.0,25888.0,97.23450189]
[1693828811411,1.32321978,25889.0,25888.0,97.23450189]
[1693828811637,1.32153978,25889.0,25888.0,96.84826116]
[1693828811836,1.31511978,25889.0,25888.0,96.84826116]
[1693828812071,1.31289978,25889.0,25888.0,96.84826116]
[1693828812284,1.31487978,25889.0,25888.0,96.84826116]
[1693828812486,1.31043978,25889.0,25888.0,96.84826116]
[1693828812694,1.18523978,25889.0,25888.0,96.84826116]
[1693828812902,1.18013978,25889.0,25888.0,96.84826116]
[1693828813108,1.18301978,25889.0,25888.0,96.84826116]
[1693828813315,1.18361978,25889.0,25888.0,96.84826116]
[1693828813521,1.17851978,25889.0,25888.0,96.84826116]
[1693828813728,0.74223978,25889.0,25888.0,96.84826116]
[1693828813932,0.67647978,25889.0,25888.0,96.46202043]
[1693828814760,0.67647978,25889.0,25888.0,96.49406856]
[1693828815164,0.69647978,25889.0,25888.0,96.49406856]
[1693828815570,1.19327978,25889.0,25888.0,96.49406856]
[1693828815772,1.20203978,25889.0,25888.0,96.49406856]
[1693828815956,1.19615978,25889.0,25888.0,96.49406856]
[1693828816170,1.19573978,25889.0,25888.0,96.49406856]
[1693828816381,1.19669978,25889.0,25888.0,96.49406856]
[1693828816583,1.19687978,25889.0,25888.0,96.49406856]
[1693828816790,1.19693978,25889.0,25888.0,96.49406856]
[1693828816994,1.19537978,25889.0,25888.0,96.49406856]
[1693828817214,1.19531978,25889.0,25888.0,96.10782783]
[1693828817426,1.19525978,25889.0,25888.0,96.10782783]
[1693828817636,1.19477978,25889.0,25888.0,96.10782783]
[1693828817842,1.19513978,25889.0,25888.0,96.10782783]
[1693828818051,1.19573978,25889.0,25888.0,96.10782783]
[1693828818182,1.19579978,25889.0,25888.0,96.10782783]
[1693828818406,1.19585978,25889.0,25888.0,96.10782783]
[1693828818597,1.19591978,25889.0,25888.0,96.10782783]
[1693828818802,1.19597978,25889.0,25888.0,96.10782783]
[1693828819061,1.19639978,25889.0,25888.0,96.10782783]
[1693828819367,1.19657978,25889.0,25888.0,96.10782783]
[1693828819499,1.19645978,25889.0,25888.0,95.7215871]
[1693828819712,1.19537978,25889.0,25888.0,95.7215871]
[1693828819915,1.19573978,25889.0,25888.0,95.7215871]
[1693828820118,1.19579978,25889.0,25888.0,95.7215871]
[1693828820316,1.19519978,25889.0,25888.0,95.7215871]
[1693828820591,1.20557978,25889.0,25888.0,95.7215871]
[1693828820794,1.20995978,25889.0,25888.0,95.7215871]
[1693828821042,1.22243978,25889.0,25888.0,95.7215871]
[1693828821242,1.22333978,25889.0,25888.0,95.7215871]
[1693828821443,1.22303978,25889.0,25888.0,95.7215871]
[1693828821665,1.21265978,25889.0,25888.0,95.7215871]
[1693828821868,1.21259978,25889.0,25888.0,95.33534637]
[1693828822057,1.16519978,25889.0,25888.0,95.33534637]
[1693828822254,1.18673978,25889.0,25888.0,95.33534637]
[1693828822460,1.18685978,25889.0,25888.0,95.33534637]
[1693828822659,1.18703978,25889.0,25888.0,95.33534637]
[1693828822866,1.21085978,25889.0,25888.0,95.33534637]
[1693828823074,1.18709978,25889.0,25888.0,95.33534637]
[1693828823266,1.18775978,25889.0,25888.0,95.33534637]
[1693828823497,1.21199978,25889.0,25888.0,95.33534637]
[1693828823690,1.22213978,25889.0,25888.0,95.33534637]
[1693828823917,1.22111978,25889.0,25888.0,95.33534637]
[1693828824113,1.21331978,25889.0,25888.0,94.94910564]
[1693828824320,1.21355978,25889.0,25888.0,94.94910564]
[1693828824531,1.22045978,25889.0,25888.0,94.94910564]
[1693828824742,1.22009978,25889.0,25888.0,94.94910564]
[1693828824925,1.22195978,25889.0,25888.0,94.94910564]
[1693828825120,1.22201978,25889.0,25888.0,94.94910564]
[1693828825352,1.67747978,25889.0,25888.0,94.94910564]
[1693828825555,1.68455978,25889.0,25888.0,94.94910564]
[1693828825735,2.7970738,25889.0,25888.0,94.94910564]
[1693828825891,2.8093138,25889.0,25888.0,94.94910564]
[1693828826096,2.7554338,25889.0,25888.0,94.94910564]
[1693828826300,2.7799138,25889.0,25888.0,94.94910564]
[1693828826499,2.7979138,25889.0,25888.0,94.56286491]
[1693828826706,2.7973138,25889.0,25888.0,94.56286491]
[1693828827021,2.9129738,25889.0,25888.0,94.56286491]
[1693828827228,2.9175338,25889.0,25888.0,94.56286491]
[1693828827473,2.9176538,25889.0,25888.0,94.56286491]
[1693828827657,2.9170538,25889.0,25888.0,94.56286491]
[1693828827863,2.9110538,25889.0,25888.0,94.56286491]
[1693828828031,2.8953338,25889.0,25888.0,94.56286491]
[1693828828560,2.8946138,25889.0,25888.0,94.56286491]
[1693828828740,2.8930538,25889.0,25888.0,94.17662418]
[1693828828954,2.8688138,25889.0,25888.0,94.17662418]
[1693828829158,2.8689338,25889.0,25888.0,94.17662418]
[1693828829377,2.8872938,25889.0,25888.0,94.17662418]
[1693828829580,2.9133338,25889.0,25888.0,94.17662418]
[1693828829774,2.8835738,25889.0,25888.0,94.17662418]
[1693828829987,2.9057738,25889.0,25888.0,94.17662418]
[1693828830155,2.9062538,25889.0,25888.0,94.17662418]
[1693828830358,2.9055338,25889.0,25888.0,94.17662418]
[1693828830554,2.9075738,25889.0,25888.0,94.17662418]
[1693828830881,2.9032538,25889.0,25888.0,94.17662418]
[1693828831030,2.9030138,25889.0,25888.0,93.79038345]
[1693828831231,2.9004938,25889.0,25888.0,93.79038345]
[1693828831437,2.7086738,25889.0,25888.0,93.79038345]
[1693828831639,2.6927738,25889.0,25888.0,93.79038345]
[1693828831842,2.7014138,25889.0,25888.0,93.79038345]
[1693828832042,2.5945738,25889.0,25888.0,93.79038345]
[1693828832274,2.5948738,25889.0,25888.0,93.79038345]
[1693828832488,2.5934338,25889.0,25888.0,93.79038345]
[1693828832684,2.5933738,25889.0,25888.0,93.79038345]
[1693828832913,2.5945138,25889.0,25888.0,93.79038345]
[1693828833147,2.5967338,25889.0,25888.0,93.79038345]
[1693828833348,2.5974538,25889.0,25888.0,93.79038345]
[1693828833549,2.5977538,25889.0,25888.0,93.40414272]
[1693828833786,2.5978738,25889.0,25888.0,93.40414272]
[1693828833916,2.5979338,25889.0,25888.0,93.40414272]
[1693828834271,2.5957138,25889.0,25888.0,93.40414272]
[1693828834473,2.5931938,25889.0,25888.0,93.40414272]
[1693828834679,2.5948138,25889.0,25888.0,93.40414272]
[1693828834916,2.5956538,25889.0,25888.0,93.40414272]
[1693828835129,2.5958338,25889.0,25888.0,93.40414272]
[1693828835329,2.5950538,25889.0,25888.0,93.40414272]
[1693828835523,2.5969138,25889.0,25888.0,93.40414272]
[1693828835664,2.5970938,25889.0,25888.0,93.40414272]
[1693828835848,2.5973338,25889.0,25888.0,93.40414272]
[1693828836048,2.6015938,25889.0,25888.0,93.40414272]
[1693828836252,2.6016538,25889.0,25888.0,93.40414272]
[1693828836454,2.69395175,25889.0,25888.0,93.40414272]
[1693828836663,2.69413175,25889.0,25888.0,93.01790199]
[1693828836859,2.83296777,25889.0,25888.0,93.01790199]
[1693828837103,2.83332777,25889.0,25888.0,93.01790199]
[1693828837309,2.83338777,25889.0,25888.0,93.01790199]
[1693828837626,2.74138982,25889.0,25888.0,93.01778856]
[1693828837926,2.74150982,25889.0,25888.0,93.01778856]
[1693828838131,2.74168982,25889.0,25888.0,93.01778856]
[1693828838332,2.73946982,25889.0,25888.0,93.01778856]
[1693828838539,2.73826982,25889.0,25888.0,93.01778856]
[1693828838809,2.73832982,25889.0,25888.0,93.01778856]
[1693828839014,2.8309828,25889.0,25888.0,93.01778856]
[1693828839225,2.8297828,25889.0,25888.0,92.63154783]
[1693828839426,2.74000982,25889.0,25888.0,92.63154783]
[1693828839755,2.92466452,25889.0,25888.0,92.63154783]
[1693828839970,2.92478452,25889.0,25888.0,92.63154783]
[1693828840256,3.21511398,25889.0,25888.0,92.63154783]
[1693828840477,3.21523398,25889.0,25888.0,92.63154783]
[1693828840679,3.21529398,25889.0,25888.0,92.63154783]
[1693828840997,3.21559398,25889.0,25888.0,92.63154783]
[1693828841343,3.21661398,25889.0,25888.0,92.63154783]
[1693828841552,3.43790558,25889.0,25888.0,92.2453071]
[1693828841705,3.44498558,25889.0,25888.0,92.2453071]
[1693828841908,3.44402558,25889.0,25888.0,92.2453071]
[1693828842133,3.44432558,25889.0,25888.0,92.2453071]
[1693828842342,3.44408558,25889.0,25888.0,92.2453071]
[1693828842679,3.67989895,25889.0,25888.0,92.2453071]
[1693828842886,3.68403895,25889.0,25888.0,92.2453071]
[1693828843079,3.68391895,25889.0,25888.0,92.2453071]
[1693828843263,3.68301895,25889.0,25888.0,92.2453071]
[1693828843487,3.68313895,25889.0,25888.0,92.2453071]
[1693828843686,3.68367895,25889.0,25888.0,91.85906637]
[1693828843912,3.49992425,25889.0,25888.0,91.85906637]
[1693828844086,3.49854425,25889.0,25888.0,91.85906637]
[1693828844323,3.49668425,25889.0,25888.0,91.85906637]
[1693828844501,3.49956425,25889.0,25888.0,91.85906637]
[1693828844678,3.49758425,25889.0,25888.0,91.85906637]
[1693828844890,3.49836425,25889.0,25888.0,91.85906637]
[1693828845468,3.26777088,25889.0,25888.0,91.85906637]
[1693828845767,3.04737928,25889.0,25888.0,91.85906637]
[1693828845968,3.25971917,25889.0,25888.0,91.47282564]
[1693828846221,3.25845917,25889.0,25888.0,91.47282564]
[1693828846594,3.26037917,25889.0,25888.0,91.47282564]
[1693828846801,3.26001917,25889.0,25888.0,91.47282564]
[1693828847005,3.26283917,25889.0,25888.0,91.47282564]
[1693828847210,3.26181917,25889.0,25888.0,91.47282564]
[1693828847399,3.26331917,25889.0,25888.0,91.47282564]
[1693828847547,3.26337917,25889.0,25888.0,91.47282564]
[1693828847759,3.26331917,25889.0,25888.0,91.47282564]
[1693828847958,3.26625917,25889.0,25888.0,91.47282564]
[1693828848183,3.26709917,25889.0,25888.0,91.47282564]
[1693828848382,3.56654413,25889.0,25888.0,91.08658491]
[1693828848563,3.56804413,25889.0,25888.0,91.08658491]
[1693828848769,3.56870413,25889.0,25888.0,91.08658491]
[1693828848970,3.56834413,25889.0,25888.0,91.08658491]
[1693828849235,3.56858413,25889.0,25888.0,91.08658491]
[1693828849513,3.76105374,25889.0,25888.0,91.08658491]
[1693828849720,3.76171374,25889.0,25888.0,91.08658491]
[1693828849900,3.76297374,25889.0,25888.0,91.08658491]
[1693828850106,3.68454413,25889.0,25888.0,91.08658491]
[1693828850305,3.84096413,25889.0,25888.0,91.08658491]
[1693828850503,3.83796413,25889.0,25888.0,91.08658491]
[1693828850708,4.01932869,25889.0,25888.0,90.70034418]
[1693828850878,3.88912807,25889.0,25888.0,90.70034418]
[1693828851085,3.88894807,25889.0,25888.0,90.70034418]
[1693828851291,3.78102807,25889.0,25888.0,90.70034418]
[1693828851498,3.78078807,25889.0,25888.0,90.70034418]
[1693828851699,3.78168807,25889.0,25888.0,90.70034418]
[1693828852022,3.78144807,25889.0,25888.0,90.70034418]
[1693828852226,3.78126807,25889.0,25888.0,90.70034418]
[1693828852420,3.78120807,25889.0,25888.0,90.70034418]
[1693828852630,3.77976807,25889.0,25888.0,90.70034418]
[1693828853041,3.77922807,25889.0,25888.0,90.31410345]
[1693828853235,3.77334807,25889.0,25888.0,90.31410345]
[1693828853418,3.74184807,25889.0,25888.0,90.31410345]
[1693828853615,3.74370807,25889.0,25888.0,90.31410345]
[1693828853825,3.74310807,25889.0,25888.0,90.31410345]
[1693828854039,3.74880807,25889.0,25888.0,90.31410345]
[1693828854251,3.74760807,25889.0,25888.0,90.31410345]
[1693828854467,3.74562807,25889.0,25888.0,90.31410345]
[1693828854833,3.74574807,25889.0,25888.0,90.31410345]
[1693828855200,3.74604807,25889.0,25888.0,90.31410345]
[1693828855421,3.74622807,25889.0,25888.0,89.92786272]
[1693828855615,3.74640807,25889.0,25888.0,89.92786272]
[1693828855752,3.74652807,25889.0,25888.0,89.92786272]
[1693828855953,3.74658807,25889.0,25888.0,89.92786272]
[1693828856153,3.74700807,25889.0,25888.0,89.92786272]
[1693828856360,3.74724807,25889.0,25888.0,89.92786272]
[1693828856576,3.74730807,25889.0,25888.0,89.92786272]
[1693828856764,3.74310807,25889.0,25888.0,89.92786272]
[1693828856960,3.74328807,25889.0,25888.0,89.92786272]
[1693828857164,3.74406807,25889.0,25888.0,89.92786272]
[1693828857439,3.74466807,25889.0,25888.0,89.92786272]
[1693828857658,3.74598807,25889.0,25888.0,89.54162199]
[1693828857856,3.74502807,25889.0,25888.0,89.54162199]
[1693828858100,3.74490807,25889.0,25888.0,89.54162199]
[1693828858302,3.74508807,25889.0,25888.0,89.54162199]
[1693828858550,3.74562807,25889.0,25888.0,89.54162199]
[1693828858752,3.74574807,25889.0,25888.0,89.54162199]
[1693828858897,3.74418807,25889.0,25888.0,89.54162199]
[1693828859084,3.74424807,25889.0,25888.0,89.54162199]
[1693828859312,3.74580807,25889.0,25888.0,89.54162199]
[1693828859711,3.74478807,25889.0,25888.0,89.54162199]
[1693828859911,3.74484807,25889.0,25888.0,89.15538126]
[1693828860086,3.74514807,25889.0,25888.0,89.15538126]
[1693828860293,3.74706807,25889.0,25888.0,89.15538126]
[1693828860560,3.74868807,25889.0,25888.0,89.15538126]
[1693828860760,3.56342413,25889.0,25888.0,89.15538126]
[1693828860943,3.56216413,25889.0,25888.0,89.15538126]
[1693828861149,3.56372413,25889.0,25888.0,89.15538126]
[1693828861385,3.56255374,25889.0,25888.0,89.15538126]
[1693828861592,3.56585374,25889.0,25888.0,89.15538126]
[1693828862012,3.56549374,25889.0,25888.0,89.15538126]
[1693828862214,3.56525374,25889.0,25888.0,89.15538126]
[1693828862417,3.56531374,25889.0,25888.0,88.76914053]
[1693828862619,3.56393374,25889.0,25888.0,88.76914053]
[1693828862826,3.56303374,25889.0,25888.0,88.76914053]
[1693828863033,3.56369374,25889.0,25888.0,88.76914053]
[1693828863234,3.56297374,25889.0,25888.0,88.76914053]
[1693828863457,3.56525374,25889.0,25888.0,88.76914053]
[1693828863660,3.56501374,25889.0,25888.0,88.76914053]
[1693828863867,3.56477374,25889.0,25888.0,88.76914053]
[1693828864071,3.56483374,25889.0,25888.0,88.76914053]
[1693828864229,3.56729374,25889.0,25888.0,88.76914053]
[1693828864433,3.57491374,25889.0,25888.0,88.76914053]
[1693828864638,3.57575374,25889.0,25888.0,88.3828998]
[1693828864832,3.57533374,25889.0,25888.0,88.3828998]
[1693828865036,3.57485374,25889.0,25888.0,88.3828998]
[1693828865236,3.57479374,25889.0,25888.0,88.3828998]
[1693828865448,3.57473374,25889.0,25888.0,88.3828998]
[1693828865648,3.57365374,25889.0,25888.0,88.3828998]
[1693828865811,3.57245374,25889.0,25888.0,88.3828998]
[1693828866014,3.57149374,25889.0,25888.0,88.3828998]
[1693828866238,3.57143374,25889.0,25888.0,88.3828998]
[1693828866444,3.57239374,25889.0,25888.0,88.3828998]
[1693828866692,3.58421374,25889.0,25888.0,88.3828998]
[1693828866858,3.58721374,25889.0,25888.0,88.3828998]
[1693828867034,3.59117374,25889.0,25888.0,87.99665907]
[1693828867249,3.72791374,25889.0,25888.0,87.99665907]
[1693828867454,3.73043374,25889.0,25888.0,87.99665907]
[1693828867675,3.73055374,25889.0,25888.0,87.99665907]
[1693828867883,3.73331374,25889.0,25888.0,87.99665907]
[1693828868109,3.73451374,25889.0,25888.0,87.99665907]
[1693828868314,3.73871374,25889.0,25888.0,87.99665907]
[1693828868453,3.73475374,25889.0,25888.0,87.99665907]
[1693828868658,3.73331374,25889.0,25888.0,87.99665907]
[1693828868856,3.73595374,25889.0,25888.0,87.99665907]
[1693828869088,3.73547374,25889.0,25888.0,87.99665907]
[1693828869269,3.72755374,25889.0,25888.0,87.99665907]
[1693828869466,3.73559374,25889.0,25888.0,87.99665907]
[1693828869670,3.72599374,25889.0,25888.0,87.99665907]
[1693828869871,3.59513374,25889.0,25888.0,87.99665907]
[1693828870070,3.58373374,25889.0,25888.0,87.61041834]
[1693828870285,3.58403374,25889.0,25888.0,87.61041834]
[1693828870692,3.58409374,25889.0,25888.0,87.61041834]
[1693828870984,3.58535374,25889.0,25888.0,87.61041834]
[1693828871160,3.57167374,25889.0,25888.0,87.61041834]
[1693828871296,3.56903374,25889.0,25888.0,87.61041834]
[1693828871500,3.56735374,25889.0,25888.0,87.61041834]
[1693828871701,3.56855374,25889.0,25888.0,87.61041834]
[1693828871965,3.56861374,25889.0,25888.0,87.61041834]
[1693828872168,3.56879374,25889.0,25888.0,87.61041834]
[1693828872369,3.56975374,25889.0,25888.0,87.61041834]
[1693828872576,3.56177374,25889.0,25888.0,87.61041834]
[1693828872734,3.56297374,25889.0,25888.0,87.61041834]
[1693828872933,3.56129374,25889.0,25888.0,87.61041834]
[1693828873137,3.56213374,25889.0,25888.0,87.61041834]
[1693828873310,3.56549374,25889.0,25888.0,87.61041834]
[1693828873512,3.57317374,25889.0,25888.0,87.61041834]
[1693828873710,3.57299374,25889.0,25888.0,87.61041834]
[1693828873937,3.57161374,25889.0,25888.0,87.61041834]
[1693828874142,3.57437374,25889.0,25888.0,87.61041834]
[1693828874342,3.57347374,25889.0,25888.0,87.61041834]
[1693828874600,3.57311374,25889.0,25888.0,87.61041834]
[1693828874808,3.57227374,25889.0,25888.0,87.61041834]
[1693828875131,3.57119374,25889.0,25888.0,87.61041834]
[1693828875405,3.57041374,25889.0,25888.0,87.61041834]
[1693828875566,3.56945374,25889.0,25888.0,87.61041834]
[1693828875763,2.90988837,25889.0,25888.0,87.61041834]
[1693828875968,3.57211022,25889.0,25888.0,87.61041834]
[1693828876169,3.57205022,25889.0,25888.0,87.61041834]
[1693828876625,3.57289022,25889.0,25888.0,87.61041834]
[1693828876928,3.57343022,25889.0,25888.0,87.61041834]
[1693828877125,3.57337022,25889.0,25888.0,87.61041834]
[1693828877430,3.57283022,25889.0,25888.0,87.61041834]
[1693828877635,3.57289022,25889.0,25888.0,87.61041834]
[1693828877821,3.57259022,25889.0,25888.0,87.61041834]
[1693828878007,3.57319022,25889.0,25888.0,87.61041834]
[1693828878428,3.57319022,25889.0,25888.0,87.22417761]
[1693828878898,3.57481022,25889.0,25888.0,87.22417761]
[1693828879104,3.57445022,25889.0,25888.0,87.22417761]
[1693828879305,3.57439022,25889.0,25888.0,87.22417761]
[1693828879508,3.57433022,25889.0,25888.0,87.22417761]
[1693828879681,3.57427022,25889.0,25888.0,87.22417761]
[1693828879885,3.57415022,25889.0,25888.0,87.22417761]
[1693828880100,3.57409022,25889.0,25888.0,87.22417761]
[1693828880299,3.57469022,25889.0,25888.0,87.22417761]
[1693828880529,3.57409022,25889.0,25888.0,87.22417761]
[1693828880721,3.57481022,25889.0,25888.0,86.83793688]
[1693828880926,3.57469022,25889.0,25888.0,86.83793688]
[1693828881146,3.57415022,25889.0,25888.0,86.83793688]
[1693828881359,3.59383022,25889.0,25888.0,86.83793688]
[1693828881538,3.07323993,25889.0,25888.0,86.83793688]
[1693828881731,3.23289993,25889.0,25888.0,86.83793688]
[1693828881968,3.22617993,25889.0,25888.0,86.83793688]
[1693828882195,3.22497993,25889.0,25888.0,86.83793688]
[1693828882377,3.22401993,25889.0,25888.0,86.83793688]
[1693828882598,3.22377993,25889.0,25888.0,86.83793688]
[1693828882790,3.22689993,25889.0,25888.0,86.83793688]
[1693828882978,3.33739993,25889.0,25888.0,86.45169615]
[1693828883179,3.33667993,25889.0,25888.0,86.45169615]
[1693828883385,3.34747993,25889.0,25888.0,86.45169615]
[1693828883711,3.65074987,25889.0,25888.0,86.45169615]
[1693828883915,3.65038987,25889.0,25888.0,86.45169615]
[1693828884042,3.64402987,25889.0,25888.0,86.45169615]
[1693828884263,3.30667993,25889.0,25888.0,86.45169615]
[1693828884441,3.60865098,25889.0,25888.0,86.45169615]
[1693828884635,3.63085098,25889.0,25888.0,86.45169615]
[1693828885044,3.62953098,25889.0,25888.0,86.45169615]
[1693828885250,3.60409098,25889.0,25888.0,86.45169615]
[1693828885453,3.31123993,25889.0,25888.0,86.06545542]
[1693828885658,3.36211993,25889.0,25888.0,86.06545542]
[1693828885858,3.36187993,25889.0,25888.0,86.06545542]
[1693828886061,3.33763993,25889.0,25888.0,86.06545542]
[1693828886264,3.36415993,25889.0,25888.0,86.06545542]
[1693828886472,3.63485061,25889.0,25888.0,86.06545542]
[1693828886644,3.63437061,25889.0,25888.0,86.06545542]
[1693828886822,3.63401061,25889.0,25888.0,86.06545542]
[1693828887031,3.62297061,25889.0,25888.0,86.06545542]
[1693828887228,3.62417061,25889.0,25888.0,86.06545542]
[1693828887429,3.62405061,25889.0,25888.0,86.06545542]
[1693828887600,3.62345061,25889.0,25888.0,86.06545542]
[1693828887812,3.35179993,25889.0,25888.0,85.67921469]
[1693828888010,3.61377915,25889.0,25888.0,85.67921469]
[1693828888212,3.34939993,25889.0,25888.0,85.67921469]
[1693828888572,3.36307993,25889.0,25888.0,85.67921469]
[1693828888869,3.35071993,25889.0,25888.0,85.67921469]
[1693828889127,3.35059993,25889.0,25888.0,85.67921469]
[1693828889528,3.34231993,25889.0,25888.0,85.67921469]
[1693828889730,3.34159993,25889.0,25888.0,85.67921469]
[1693828889930,3.33979993,25889.0,25888.0,85.67921469]
[1693828890132,3.33979993,25889.0,25888.0,85.29297396]
[1693828890352,3.34195993,25889.0,25888.0,85.29297396]
[1693828890558,3.34927993,25889.0,25888.0,85.29297396]
[1693828890739,3.34939993,25889.0,25888.0,85.29297396]
[1693828891038,3.34963993,25889.0,25888.0,85.29297396]
[1693828891466,3.34975993,25889.0,25888.0,85.29297396]
[1693828891713,3.35191993,25889.0,25888.0,85.29297396]
[1693828891913,3.35167993,25889.0,25888.0,85.29297396]
[1693828892112,3.34351993,25889.0,25888.0,85.29297396]
[1693828892235,3.34783993,25889.0,25888.0,85.29297396]
[1693828892434,3.34783993,25889.0,25888.0,84.90673323]
[1693828892629,3.34759993,25889.0,25888.0,84.90673323]
[1693828893081,3.34315993,25889.0,25888.0,84.90673323]
[1693828893414,3.34663993,25889.0,25888.0,84.90673323]
[1693828893568,3.37731993,25889.0,25888.0,84.90673323]
[1693828893776,3.37191993,25889.0,25888.0,84.90673323]
[1693828894388,3.37167993,25889.0,25888.0,84.90673323]
[1693828894571,3.37215993,25889.0,25888.0,84.90673323]
[1693828894768,3.37719993,25889.0,25888.0,84.5204925]
[1693828895097,3.37071993,25889.0,25888.0,84.5204925]
[1693828895293,3.37599993,25889.0,25888.0,84.5204925]
[1693828895650,3.37431993,25889.0,25888.0,84.5204925]
[1693828895852,3.37491993,25889.0,25888.0,84.5204925]
[1693828896032,3.37515993,25889.0,25888.0,84.5204925]
[1693828896252,3.37671993,25889.0,25888.0,84.5204925]
[1693828896378,3.37551993,25889.0,25888.0,84.5204925]
[1693828896590,3.37407993,25889.0,25888.0,84.5204925]
[1693828896821,3.36591993,25889.0,25888.0,84.5204925]
[1693828897028,3.36579993,25889.0,25888.0,84.13425177]
[1693828897261,3.37359993,25889.0,25888.0,84.13425177]
[1693828897464,3.37431993,25889.0,25888.0,84.13425177]
[1693828897657,3.37347993,25889.0,25888.0,84.13425177]
[1693828897853,3.36867993,25889.0,25888.0,84.13425177]
[1693828898066,3.37059993,25889.0,25888.0,84.13425177]
[1693828898523,3.37575993,25889.0,25888.0,84.13425177]
[1693828898707,3.37563993,25889.0,25888.0,84.13425177]
[1693828898881,3.37551993,25889.0,25888.0,84.13425177]
[1693828899340,3.37539993,25889.0,25888.0,83.12571104]
[1693828899532,3.42003993,25889.0,25888.0,83.12571104]
[1693828899739,3.41655993,25889.0,25888.0,83.12571104]
[1693828900027,2.98634341,25889.0,25888.0,83.12571104]
[1693828900279,3.4165441,25889.0,25888.0,83.12571104]
[1693828900486,3.4137841,25889.0,25888.0,83.12571104]
[1693828900687,3.4259041,25889.0,25888.0,83.12571104]
[1693828900862,3.4255441,25889.0,25888.0,83.12571104]
[1693828901088,3.4189441,25889.0,25888.0,83.12571104]
[1693828901293,3.4235041,25889.0,25888.0,83.12571104]
[1693828901495,3.4224241,25889.0,25888.0,83.12571104]
[1693828901716,3.4218241,25889.0,25888.0,82.73947031]
[1693828901933,3.4214641,25889.0,25888.0,82.73947031]
[1693828902138,3.4212241,25889.0,25888.0,82.73947031]
[1693828902340,3.4202641,25889.0,25888.0,82.73947031]
[1693828902547,3.4195441,25889.0,25888.0,82.73947031]
[1693828902726,3.4226641,25889.0,25888.0,82.73947031]
[1693828902982,3.4191841,25889.0,25888.0,82.73947031]
[1693828903172,3.4202641,25889.0,25888.0,82.73947031]
[1693828903499,3.4231441,25889.0,25888.0,82.73947031]
[1693828903722,3.4214641,25889.0,25888.0,82.73947031]
[1693828903912,4.9889041,25889.0,25888.0,82.73947031]
[1693828904144,4.9657441,25889.0,25888.0,82.35322958]
[1693828904353,4.9845841,25889.0,25888.0,82.35322958]
[1693828904578,4.9633441,25889.0,25888.0,82.35322958]
[1693828904794,4.9621441,25889.0,25888.0,82.35322958]
[1693828904923,4.9617841,25889.0,25888.0,82.35322958]
[1693828905134,4.9843441,25889.0,25888.0,82.35322958]
[1693828905334,4.9847041,25889.0,25888.0,82.35322958]
[1693828905536,4.9856641,25889.0,25888.0,82.35322958]
[1693828905738,4.9849441,25889.0,25888.0,82.35322958]
[1693828905937,4.9860241,25889.0,25888.0,82.35322958]
[1693828906139,4.9613041,25889.0,25888.0,82.35322958]
[1693828906360,4.9589041,25889.0,25888.0,81.96698885]
[1693828906562,4.9902241,25889.0,25888.0,81.96698885]
[1693828906792,4.9952641,25889.0,25888.0,81.96698885]
[1693828906959,4.9933441,25889.0,25888.0,81.96698885]
[1693828907161,5.27243728,25889.0,25888.0,81.96698885]
[1693828907366,5.27147728,25889.0,25888.0,81.96698885]
[1693828907566,5.27039728,25889.0,25888.0,81.96698885]
[1693828907786,5.52692638,25889.0,25888.0,81.96698885]
[1693828908006,5.27418133,25889.0,25888.0,81.96698885]
[1693828908228,5.25726133,25889.0,25888.0,81.96698885]
[1693828908427,5.26650133,25889.0,25888.0,81.96698885]
[1693828908628,5.28462133,25889.0,25888.0,81.58074812]